bitfinex/quotes_SOLUSD_20250929
["timestamp","ask_amount","ask_price","bid_price","bid_amount"]
[1759105261162,0.7,210.21,210.16,16.65397791]
[1759105261560,0.7,210.24,210.18,16.65239318]
[1759105261875,0.7,210.23,210.18,16.65239318]
[1759105262174,0.7,210.22,210.18,16.65239318]
[1759105262378,0.7,210.21,210.18,16.65239318]
[1759105262565,0.7,210.2,210.18,16.65239318]
[1759105262880,0.7,210.19,210.18,16.65239318]
[1759105263053,0.7,210.21,210.15,16.65477039]
[1759105263367,0.7,210.21,210.15,40.71729953]
[1759105265161,0.7,210.23,210.16,0.27]
[1759105265370,0.7,210.22,210.16,0.27]
[1759105267359,0.7,210.22,210.17,16.65318551]
[1759105267574,0.7,210.21,210.17,16.65318551]
[1759105267875,0.7,210.2,210.17,16.65318551]
[1759105268176,0.7,210.19,210.17,16.65318551]
[1759105268366,0.7,210.18,210.17,16.65318551]
[1759105269357,0.7,210.18,210.13,16.65635557]
[1759105269680,0.7,210.17,210.13,16.65635557]
[1759105271877,3.18746865,210.23,210.13,11.89739684]
[1759105272068,17.47306266,210.22,210.13,11.89739684]
[1759105272268,3.87746865,210.21,210.13,12.16739684]
[1759105272577,0.69,210.2,210.13,12.16739684]
[1759105272778,0.69,210.19,210.13,12.16739684]
[1759105273573,0.69,210.19,210.13,11.89739684]
[1759105273776,3.18746865,210.21,210.15,16.65477039]
[1759105273965,3.18746865,210.21,210.15,40.44729953]
[1759105274173,0.69,210.23,210.16,0.27]
[1759105274779,3.87746865,210.23,210.16,0.27]
[1759105274975,0.69,210.23,210.16,0.27]
[1759105275186,3.87746865,210.24,210.16,0.27]
[1759105275366,0.69,210.24,210.16,0.27]
[1759105275685,3.87746865,210.24,210.16,0.27]
[1759105275857,0.69,210.24,210.17,40.44345053]
[1759105276060,0.69,210.24,210.18,0.27]
[1759105277584,0.69,210.24,210.17,40.44345053]
[1759105277885,0.69,210.23,210.17,40.44345053]
[1759105278962,0.69,210.23,210.17,35.95539753]
[1759105279372,0.69,210.23,210.17,35.68539753]
[1759105279679,0.69,210.23,210.18,0.27]
[1759105279887,0.69,210.23,210.17,35.68539753]
[1759105280068,0.69,210.22,210.17,35.68539753]
[1759105280269,0.69,210.21,210.17,35.68539753]
[1759105280483,0.69,210.2,210.17,35.68539753]
[1759105280688,0.69,210.19,210.17,35.68539753]
[1759105280992,3.1889494,210.24,210.17,35.68539753]
[1759105281211,0.68,210.25,210.18,0.27]
[1759105283193,0.68,210.25,210.19,40.43960225]
[1759105283368,0.68,210.25,210.19,40.70960225]
[1759105288888,0.68,210.25,210.19,40.43960225]
[1759105289088,0.68,210.27,210.2,0.27]
[1759105289675,0.68,210.27,210.19,77.33960225]
[1759105289883,0.68,210.26,210.19,77.33960225]
[1759105290087,0.68,210.25,210.19,77.60960225]
[1759105293807,0.68,210.28,210.2,0.27]
[1759105294695,0.68,210.28,210.21,40.43575471]
[1759105294893,0.68,210.28,210.22,0.27]
[1759105296998,0.68,210.28,210.23,16.64843266]
[1759105297184,0.68,210.27,210.23,40.4319079]
[1759105297498,0.68,210.27,210.23,40.7019079]
[1759105297801,26.0,210.31,210.23,40.7019079]
[1759105297979,0.68,210.3,210.23,40.7019079]
[1759105298292,26.0,210.31,210.23,40.4319079]
[1759105298293,0.68,210.29,210.23,40.4319079]
[1759105298492,0.68,210.28,210.23,40.4319079]
[1759105298697,0.68,210.27,210.23,40.4319079]
[1759105299100,0.68,210.27,210.23,35.67521286]
[1759105299811,3.86718498,210.32,210.24,0.27]
[1759105300097,0.68,210.32,210.24,37.17]
[1759105300279,0.68,210.32,210.25,0.27]
[1759105300475,0.68,210.32,210.25,4.24321572]
[1759105300675,3.86718498,210.35,210.26,0.27]
[1759105300882,0.68,210.35,210.26,0.27]
[1759105301089,0.68,210.35,210.27,40.42421647]
[1759105301299,0.68,210.35,210.28,37.15]
[1759105301678,0.68,210.35,210.29,0.27]
[1759105302079,0.68,210.38,210.29,0.27]
[1759105302278,0.68,210.37,210.29,0.27]
[1759105302478,0.68,210.38,210.29,0.27]
[1759105303182,0.68,210.38,210.3,40.41844982]
[1759105303377,0.68,210.37,210.3,40.68844982]
[1759105304784,0.68,210.37,210.31,0.27]
[1759105305183,0.68,210.37,210.32,16.64130847]
[1759105305397,0.68,210.37,210.32,53.79130847]
[1759105305601,0.68,210.39,210.33,0.27]
[1759105306297,0.68,210.39,210.33,3.64892668]
[1759105306600,0.68,210.39,210.33,0.27]
[1759105306799,0.2,210.41,210.33,0.27]
[1759105306984,0.88,210.41,210.33,0.27]
[1759105307394,0.88,210.41,210.34,40.41076351]
[1759105307590,0.68,210.4,210.34,40.41076351]
[1759105307789,0.68,210.4,210.34,40.68076351]
[1759105308307,0.2,210.41,210.35,0.27]
[1759105308506,0.2,210.41,210.36,36.88]
[1759105308805,0.2,210.41,210.37,0.27]
[1759105308994,0.2,210.41,210.36,36.88]
[1759105309179,0.2,210.41,210.37,0.27]
[1759105309382,0.2,210.41,210.38,16.6365624]
[1759105310208,0.2,210.41,210.38,53.4965624]
[1759105310784,0.2,210.41,210.38,53.7665624]
[1759105311406,0.2,210.41,210.38,49.01325886]
[1759105312011,0.2,210.41,210.39,0.27]
[1759105312601,0.2,210.43,210.39,0.27]
[1759105312784,1e-08,210.43,210.39,0.27]
[1759105313301,1e-08,210.43,210.39,13.86559401]
[1759105313606,1e-08,210.43,210.42,26.0]
[1759105313801,1e-08,210.43,210.42,62.86]
[1759105314106,1e-08,210.43,210.42,63.13]
[1759105314480,0.2,210.48,210.42,26.27]
[1759105314686,0.2,210.48,210.43,53.4926094]
[1759105315008,0.71,210.47,210.43,53.4926094]
[1759105315201,0.2,210.48,210.43,53.4926094]
[1759105315790,0.2,210.48,210.43,53.7626094]
[1759105317015,0.2,210.48,210.44,0.27]
[1759105317193,0.2,210.48,210.43,53.4926094]
[1759105317387,0.2,210.48,210.43,53.7626094]
[1759105317587,0.2,210.49,210.44,0.27]
[1759105317913,1e-08,210.49,210.47,26.0]
[1759105318095,1e-08,210.52,210.48,37.11]
[1759105318418,1e-08,210.52,210.48,39.01462586]
[1759105319308,1e-08,210.52,210.49,16.6278683]
[1759105320405,0.71000001,210.52,210.49,53.4678683]
[1759105320609,0.2,210.56,210.49,53.4678683]
[1759105320803,0.91,210.54,210.49,53.4678683]
[1759105321217,0.2,210.54,210.49,53.4678683]
[1759105321414,0.71,210.53,210.49,16.6278683]
[1759105321712,0.71,210.52,210.49,16.6278683]
[1759105321903,0.71,210.51,210.49,16.6278683]
[1759105322211,0.91,210.54,210.49,16.6278683]
[1759105322416,0.71,210.53,210.49,16.6278683]
[1759105323104,0.2,210.54,210.49,16.6278683]
[1759105323408,0.2,210.56,210.5,0.27]
[1759105323612,0.2,210.56,210.51,36.84]
[1759105323912,0.91,210.56,210.51,36.84]
[1759105324091,0.71,210.55,210.51,36.84]
[1759105324289,0.2,210.56,210.51,36.84]
[1759105324484,0.2,210.56,210.51,37.11]
[1759105324804,0.71,210.55,210.51,36.84]
[1759105325198,0.2,210.56,210.51,36.84]
[1759105325508,0.91,210.56,210.52,16.62549876]
[1759105325720,0.2,210.56,210.52,16.89549876]
[1759105326293,1e-08,210.56,210.52,16.89549876]
[1759105326610,1e-08,210.56,210.53,0.27]
[1759105326908,1e-08,210.56,210.54,36.82]
[1759105327106,1e-08,210.56,210.54,37.09]
[1759105327313,1e-08,210.56,210.54,36.82]
[1759105327514,1e-08,210.56,210.55,4.74946568]
[1759105328012,1e-08,210.58,210.55,16.89312989]
[1759105328224,1e-08,210.58,210.56,36.82]
[1759105329312,0.2,210.62,210.56,36.82]
[1759105329609,0.71,210.61,210.57,16.62155101]
[1759105329807,0.2,210.62,210.57,16.62155101]
[1759105329985,0.71,210.61,210.57,16.62155101]
[1759105330490,0.71,210.6,210.57,16.62155101]
[1759105330704,0.91,210.62,210.57,16.62155101]
[1759105330914,0.71,210.61,210.57,16.62155101]
[1759105331214,0.2,210.62,210.57,16.62155101]
[1759105331413,0.71,210.6,210.57,16.62155101]
[1759105331705,0.86,210.62,210.57,16.62155101]
[1759105332015,0.66,210.61,210.57,16.62155101]
[1759105332602,0.2,210.62,210.57,16.62155101]
[1759105332811,0.86,210.62,210.57,16.62155101]
[1759105333516,0.66,210.61,210.57,16.62155101]
[1759105333694,0.2,210.62,210.57,53.44155101]
[1759105333894,0.86,210.62,210.57,53.44155101]
[1759105334104,0.2,210.62,210.58,0.27]
[1759105334796,0.2,210.62,210.58,36.82]
[1759105335105,0.86,210.62,210.59,16.61997244]
[1759105336821,0.66,210.61,210.59,16.61997244]
[1759105336998,0.66,210.61,210.59,11.87140889]
[1759105337199,0.66,210.6,210.59,11.87140889]
[1759105337801,0.2,210.62,210.59,11.87140889]
[1759105338303,0.86,210.62,210.59,11.87140889]
[1759105339496,0.86,210.62,210.59,16.61997244]
[1759105340401,1e-08,210.62,210.59,16.61997244]
[1759105340600,1e-08,210.62,210.6,0.27]
[1759105340833,1e-08,210.62,210.61,36.8]
[1759105341006,0.2,210.63,210.6,0.27]
[1759105341206,1e-08,210.65,210.61,37.07]
[1759105341400,1e-08,210.66,210.63,16.61681621]
[1759105341727,1e-08,210.66,210.64,36.8]
[1759105341897,1e-08,210.66,210.64,0.27]
[1759105342101,1e-08,210.66,210.64,37.07]
[1759105342497,1e-08,210.66,210.64,36.8]
[1759105343094,1e-08,210.66,210.63,16.61681621]
[1759105343297,0.7,210.65,210.64,36.8]
[1759105343518,0.7,210.65,210.63,16.61681621]
[1759105343519,0.7,210.65,210.63,48.66915444]
[1759105343698,0.7,210.64,210.63,11.86915444]
[1759105344432,0.7,210.64,210.61,4.74811262]
[1759105344603,1.51637692,210.62,210.51,48.67592038]
[1759105344920,0.7,210.61,210.52,0.27]
[1759105345132,0.7,210.61,210.52,37.07]
[1759105345302,0.7,210.61,210.53,0.27]
[1759105345622,0.7,210.61,210.54,77.17237579]
[1759105345818,0.7,210.6,210.54,77.17237579]
[1759105346000,26.0,210.64,210.54,77.17237579]
[1759105346001,0.7,210.59,210.54,77.17237579]
[1759105346201,0.7,210.58,210.55,36.8]
[1759105346707,0.7,210.57,210.54,16.62391944]
[1759105346908,0.7,210.56,210.54,16.62391944]
[1759105347224,0.7,210.6,210.54,16.62391944]
[1759105347615,26.0,210.64,210.54,11.87422817]
[1759105347817,0.7,210.59,210.54,11.87422817]
[1759105348015,0.7,210.58,210.54,11.87422817]
[1759105348220,0.7,210.57,210.54,11.87422817]
[1759105348750,0.7,210.56,210.54,11.87422817]
[1759105349422,13.59559401,210.63,210.54,11.87422817]
[1759105349614,0.7,210.58,210.54,11.87422817]
[1759105349814,0.7,210.57,210.54,11.87422817]
[1759105350126,0.7,210.59,210.54,11.87422817]
[1759105350321,0.7,210.58,210.54,11.87422817]
[1759105350908,0.7,210.59,210.54,11.87422817]
[1759105351101,0.7,210.58,210.54,91.17422817]
[1759105351320,0.7,210.57,210.54,91.17422817]
[1759105351520,26.0,210.65,210.54,91.17422817]
[1759105351521,0.7,210.56,210.55,36.82]
[1759105351827,0.7,210.56,210.55,41.56946568]
[1759105352009,0.7,210.56,210.55,4.74946568]
[1759105353420,0.7,210.58,210.55,16.62312989]
[1759105353737,0.7,210.58,210.55,11.87366421]
[1759105356018,39.59559401,210.64,210.55,11.87366421]
[1759105356224,0.7,210.57,210.55,11.87366421]
[1759105356727,0.7,210.59,210.55,11.87366421]
[1759105356929,0.7,210.58,210.55,11.87366421]
[1759105357112,0.7,210.58,210.53,23.74903136]
[1759105357313,0.7,210.58,210.54,36.8]
[1759105358531,0.7,210.61,210.54,36.8]
[1759105358716,0.7,210.61,210.53,23.74903136]
[1759105358717,0.7,210.61,210.55,37.07]
[1759105358918,0.7,210.62,210.55,37.07]
[1759105359118,0.7,210.61,210.56,16.62234042]
[1759105359326,0.7,210.6,210.56,40.36854102]
[1759105359835,0.7,210.6,210.56,77.16854102]
[1759105360133,26.0,210.65,210.56,77.16854102]
[1759105360340,0.7,210.6,210.56,77.16854102]
[1759105360724,0.7,210.6,210.56,40.36854102]
[1759105360924,0.7,210.59,210.56,77.16854102]
[1759105361240,0.7,210.58,210.55,36.8]
[1759105361534,0.7,210.57,210.55,36.8]
[1759105361717,0.7,210.56,210.54,36.8]
[1759105362121,0.7,210.56,210.52,40.37621128]
[1759105362317,0.7,210.56,210.53,36.8]
[1759105362524,0.7,210.55,210.53,36.8]
[1759105363115,0.7,210.55,210.52,40.37621128]
[1759105363330,0.7,210.55,210.53,36.8]
[1759105363541,13.59559401,210.62,210.53,36.8]
[1759105363840,0.7,210.55,210.53,36.8]
[1759105364739,0.7,210.56,210.53,36.8]
[1759105364942,0.7,210.58,210.52,40.37621128]
[1759105365141,0.7,210.58,210.53,36.8]
[1759105365348,0.7,210.58,210.54,16.62391944]
[1759105365637,0.7,210.58,210.54,53.42391944]
[1759105366255,0.7,210.57,210.54,53.42391944]
[1759105369133,13.59559401,210.62,210.54,53.42391944]
[1759105369334,0.7,210.61,210.54,53.42391944]
[1759105369540,0.7,210.63,210.55,0.27]
[1759105369744,1e-08,210.66,210.55,0.27]
[1759105369745,3.17502637,210.66,210.55,0.27]
[1759105369947,0.7,210.64,210.56,36.8]
[1759105370145,0.7,210.64,210.57,0.27]
[1759105370559,0.7,210.64,210.58,36.8]
[1759105370728,0.7,210.64,210.59,36.8]
[1759105371134,0.69,210.63,210.59,36.8]
[1759105371332,0.69,210.65,210.59,36.8]
[1759105371534,0.69,210.65,210.6,16.61918328]
[1759105371944,0.69,210.64,210.6,16.61918328]
[1759105372148,0.69,210.63,210.6,16.61918328]
[1759105372355,0.69,210.62,210.6,16.61918328]
[1759105372851,0.69,210.64,210.6,16.61918328]
[1759105373150,0.69,210.63,210.6,16.61918328]
[1759105373545,0.69,210.62,210.6,4.74833808]
[1759105373946,26.00000001,210.66,210.6,4.74833808]
[1759105374250,0.69,210.65,210.6,16.61918328]
[1759105374436,0.69,210.64,210.6,16.61918328]
[1759105374750,0.69,210.63,210.6,16.61918328]
[1759105374940,0.69,210.65,210.6,16.61918328]
[1759105375345,0.69,210.65,210.6,16.88918328]
[1759105375659,0.69,210.65,210.6,36.8]
[1759105375954,0.69,210.64,210.6,36.8]
[1759105376141,0.69,210.63,210.59,36.8]
[1759105376342,26.00000001,210.66,210.59,36.8]
[1759105376541,0.69,210.63,210.59,36.8]
[1759105376949,0.69,210.63,210.57,0.27]
[1759105377137,1e-08,210.66,210.58,36.8]
[1759105377341,0.69,210.65,210.58,36.8]
[1759105377539,0.69,210.65,210.58,16.62076169]
[1759105377739,0.69,210.65,210.58,53.42076169]
[1759105378044,0.69,210.64,210.58,53.42076169]
[1759105378248,0.69,210.64,210.58,53.69076169]
[1759105378452,0.69,210.64,210.58,16.89076169]
[1759105378777,0.69,210.64,210.58,53.69076169]
[1759105379060,2.36526114,210.6,210.49,13.9510732]
[1759105379235,26.69,210.59,210.48,0.27]
[1759105379435,26.0,210.58,210.48,5.02090764]
[1759105379760,2.36526114,210.57,210.48,4.75090764]
[1759105379930,0.69,210.56,210.48,4.75090764]
[1759105380253,15.96085515,210.51,210.39,0.27]
[1759105380429,15.96085515,210.51,210.41,11.88140499]
[1759105380633,0.69,210.5,210.41,11.88140499]
[1759105380857,0.69,210.49,210.41,11.88140499]
[1759105381162,0.69,210.48,210.41,11.88140499]
[1759105381339,0.69,210.47,210.41,11.88140499]
[1759105381658,0.69,210.46,210.41,11.88140499]
[1759105381961,0.69,210.45,210.41,11.88140499]
[1759105382256,26.0,210.48,210.42,0.27]
[1759105382443,0.69,210.47,210.41,11.88140499]
[1759105382640,26.0,210.57,210.42,0.27]
[1759105382846,0.69,210.52,210.43,16.6326094]
[1759105383163,0.69,210.54,210.44,0.27]
[1759105383543,0.69,210.54,210.46,26.0]
[1759105383742,0.69,210.54,210.46,26.27]
[1759105383956,26.0,210.56,210.47,37.11]
[1759105384256,0.69,210.57,210.48,0.27]
[1759105385062,0.69,210.57,210.49,16.6278683]
[1759105385444,0.69,210.57,210.49,16.8978683]
[1759105386045,0.69,210.57,210.49,40.65196588]
[1759105387357,26.0,210.59,210.49,35.63114637]
[1759105387661,0.69,210.61,210.5,0.27]
[1759105387846,0.69,210.61,210.52,26.0]
[1759105388049,0.69,210.61,210.53,0.27]
[1759105389863,0.69,210.61,210.54,16.62391944]
[1759105390365,0.69,210.65,210.55,0.27]
[1759105390552,0.69,210.65,210.57,26.0]
[1759105390746,0.69,210.64,210.57,62.84]
[1759105391255,0.69,210.64,210.57,63.11]
[1759105391457,0.69000001,210.66,210.58,0.27]
[1759105392164,0.69000001,210.66,210.59,16.61997244]
[1759105393541,1e-08,210.66,210.6,0.27]
[1759105393740,1e-08,210.66,210.62,26.0]
[1759105394162,1e-08,210.66,210.63,16.61681621]
[1759105394540,1e-08,210.66,210.63,16.88681621]
[1759105395153,1e-08,210.66,210.63,16.61681621]
[1759105395564,0.67000001,210.66,210.63,16.61681621]
[1759105396268,0.67,210.65,210.63,16.61681621]
[1759105397262,0.67,210.64,210.63,4.74766177]
[1759105398257,0.67,210.64,210.58,4.74878905]
[1759105398450,0.67,210.63,210.58,4.74878905]
[1759105398650,0.67,210.62,210.58,4.74878905]
[1759105399172,0.67,210.62,210.58,16.62076169]
[1759105399875,26.00000001,210.66,210.58,16.62076169]
[1759105400171,0.67,210.65,210.58,16.62076169]
[1759105400346,0.67,210.64,210.58,16.62076169]
[1759105400549,0.67,210.63,210.58,16.62076169]
[1759105400763,0.69,210.62,210.58,16.62076169]
[1759105400965,0.69,210.61,210.58,16.62076169]
[1759105401170,0.69,210.6,210.58,16.62076169]
[1759105401348,0.69,210.59,210.58,16.62076169]
[1759105401548,0.69,210.59,210.58,4.74878905]
[1759105401958,0.69,210.59,210.55,16.62275277]
[1759105402274,0.69,210.58,210.55,16.62275277]
[1759105403067,2.36526114,210.63,210.55,11.87328709]
[1759105403259,0.69,210.62,210.55,11.87328709]
[1759105403654,0.69,210.61,210.55,11.87328709]
[1759105403978,13.59559401,210.59,210.53,4.74991687]
[1759105404353,0.69,210.58,210.53,4.74991687]
[1759105404554,0.69,210.57,210.53,4.74991687]
[1759105404777,0.69,210.56,210.53,4.74991687]
[1759105404958,0.69,210.55,210.53,4.74991687]
[1759105405164,0.69,210.55,210.5,11.87616571]
[1759105405366,0.69,210.54,210.5,11.87616571]
[1759105406253,0.69,210.6,210.51,0.27]
[1759105406468,0.69,210.62,210.51,0.27]
[1759105408161,0.69,210.62,210.52,40.37621128]
[1759105408475,0.69,210.61,210.52,40.37621128]
[1759105408677,0.69,210.6,210.52,40.37621128]
[1759105408868,0.69,210.59,210.52,16.62549876]
[1759105409069,0.69,210.58,210.52,16.62549876]
[1759105412882,0.69,210.62,210.53,0.27]
[1759105413064,0.69,210.61,210.53,0.27]
[1759105414284,0.69,210.61,210.52,40.64621128]
[1759105414471,39.59559401,210.63,210.52,40.64621128]
[1759105414675,0.69,210.6,210.52,40.37621128]
[1759105414856,0.69,210.59,210.52,40.37621128]
[1759105415061,0.69,210.58,210.52,40.37621128]
[1759105415271,0.69,210.57,210.52,40.37621128]
[1759105415462,0.69,210.56,210.52,40.37621128]
[1759105415660,0.69,210.55,210.52,16.62549876]
[1759105416082,0.69,210.54,210.52,16.62549876]
[1759105416257,0.69,210.53,210.52,16.62549876]
[1759105416465,0.69,210.55,210.52,16.62549876]
[1759105416770,0.69,210.55,210.49,16.6278683]
[1759105417283,2.36526114,210.58,210.49,16.6278683]
[1759105417463,0.69,210.55,210.49,16.6278683]
[1759105418686,26.0,210.57,210.49,11.87704879]
[1759105418865,0.69,210.54,210.48,4.75104522]
[1759105419067,13.59559401,210.51,210.42,23.76134632]
[1759105419280,0.69,210.5,210.42,23.76134632]
[1759105419486,3.05526114,210.49,210.43,11.88006211]
[1759105419683,0.69,210.48,210.43,11.88006211]
[1759105420185,0.69,210.47,210.43,11.88006211]
[1759105420576,0.69,210.46,210.4,16.63498098]
[1759105420888,0.69,210.45,210.4,16.63498098]
[1759105421063,0.69,210.44,210.4,16.63498098]
[1759105421270,0.69,210.43,210.4,16.63498098]
[1759105421880,0.69,210.42,210.4,16.63498098]
[1759105423078,0.69,210.42,210.4,11.88212927]
[1759105424967,0.69,210.41,210.4,11.88212927]
[1759105425367,13.59559401,210.45,210.4,11.88212927]
[1759105425583,0.69,210.41,210.38,4.75330354]
[1759105425770,0.69,210.41,210.38,16.6365624]
[1759105426173,6.07091664,210.43,210.38,16.6365624]
[1759105426577,26.0,210.43,210.38,16.9065624]
[1759105427083,26.69,210.43,210.38,16.6365624]
[1759105427386,42.28091664,210.46,210.38,16.6365624]
[1759105427692,0.69,210.45,210.38,16.6365624]
[1759105428292,0.69,210.44,210.38,16.6365624]
[1759105428481,0.69,210.43,210.38,16.6365624]
[1759105428699,62.9,210.46,210.39,0.27]
[1759105428875,0.69,210.49,210.39,0.27]
[1759105429203,26.0,210.47,210.4,16.63498098]
[1759105429678,26.0,210.47,210.4,16.90498098]
[1759105430174,26.0,210.47,210.4,40.66923953]
[1759105431075,26.0,210.47,210.41,0.27]
[1759105431312,26.0,210.47,210.42,16.63339986]
[1759105431895,0.66,210.46,210.42,16.63339986]
[1759105432185,0.66,210.45,210.42,16.63339986]
[1759105432372,0.66,210.44,210.42,16.63339986]
[1759105433196,31.38091664,210.47,210.38,16.6365624]
[1759105433381,0.66,210.46,210.38,16.6365624]
[1759105433582,0.66,210.45,210.38,16.6365624]
[1759105433779,0.66,210.44,210.38,16.6365624]
[1759105434171,0.66,210.43,210.38,16.6365624]
[1759105434392,0.66,210.42,210.38,16.6365624]
[1759105434576,29.68792457,210.45,210.38,16.6365624]
[1759105434774,0.66,210.44,210.38,16.6365624]
[1759105435076,0.66,210.43,210.38,16.6365624]
[1759105435279,0.66,210.42,210.38,16.6365624]
[1759105435591,13.59559401,210.46,210.38,16.6365624]
[1759105435790,26.66,210.46,210.39,0.27]
[1759105436385,26.66,210.46,210.38,16.6365624]
[1759105436591,0.66,210.45,210.38,16.6365624]
[1759105436785,0.66,210.44,210.38,16.6365624]
[1759105437494,36.94,210.47,210.39,0.27]
[1759105437698,37.6,210.47,210.39,0.27]
[1759105438891,0.66,210.47,210.39,0.27]
[1759105439478,0.66,210.47,210.4,40.39923953]
[1759105440097,76.51559401,210.49,210.4,40.39923953]
[1759105440293,0.66,210.46,210.4,40.39923953]
[1759105440798,0.66,210.48,210.4,40.66923953]
[1759105440989,26.0,210.49,210.41,0.27]
[1759105441800,26.0,210.49,210.42,40.39539966]
[1759105442887,132.8,210.53,210.43,0.27]
[1759105443085,0.66,210.55,210.45,26.0]
[1759105443285,0.66,210.55,210.46,0.27]
[1759105443806,0.66,210.55,210.47,40.38580319]
[1759105444388,0.66,210.55,210.47,40.65580319]
[1759105445481,0.66,210.57,210.48,0.27]
[1759105445884,0.66,210.57,210.49,40.38196588]
[1759105446089,0.66,210.57,210.49,40.65196588]
[1759105446290,0.66,210.57,210.5,0.27]
[1759105448206,0.66,210.57,210.51,16.62628853]
[1759105449817,0.66,210.57,210.51,40.37812929]
[1759105450187,36.92,210.61,210.51,40.37812929]
[1759105450382,0.66,210.58,210.51,40.37812929]
[1759105450607,0.66,210.58,210.51,40.64812929]
[1759105452208,1e-08,210.66,210.54,26.0]
[1759105452409,1e-08,210.66,210.55,37.17]
[1759105452605,1e-08,210.66,210.55,51.20704202]
[1759105452812,0.66000001,210.66,210.58,26.0]
[1759105453023,1e-08,210.66,210.58,26.0]
[1759105453190,1e-08,210.66,210.6,40.36087368]
[1759105453508,1e-08,210.66,210.6,77.28087368]
[1759105453703,1e-08,210.66,210.61,0.27]
[1759105454103,1e-08,210.66,210.62,0.27]
[1759105454485,1e-08,210.66,210.63,0.27]
[1759105455191,1e-08,210.66,210.61,0.27]
[1759105455400,1e-08,210.66,210.62,16.61760516]
[1759105455688,1e-08,210.66,210.62,16.88760516]
[1759105455885,1e-08,210.66,210.63,0.27]
[1759105456495,1e-08,210.66,210.62,16.61760516]
[1759105456695,1e-08,210.66,210.62,16.88760516]
[1759105457401,1e-08,210.66,210.64,4.74743638]
[1759105458516,0.66,210.65,210.64,4.74743638]
[1759105459321,0.66,210.65,210.62,11.86971797]
[1759105459530,0.66,210.65,210.6,28.49002848]
[1759105459531,0.66,210.64,210.6,4.74833808]
[1759105459824,1e-08,210.66,210.6,4.74833808]
[1759105459825,0.66,210.63,210.6,4.74833808]
[1759105460030,0.66,210.62,210.6,4.74833808]
[1759105460328,0.66,210.61,210.6,4.74833808]
[1759105460497,0.66,210.63,210.6,16.61918328]
[1759105460698,0.68,210.62,210.6,16.61918328]
[1759105461743,0.68,210.62,210.56,16.62234042]
[1759105462024,13.59559401,210.64,210.56,16.62234042]
[1759105462190,0.68,210.63,210.56,16.62234042]
[1759105462395,0.68,210.62,210.56,16.62234042]
[1759105462600,0.68,210.61,210.56,16.62234042]
[1759105462822,0.68,210.6,210.56,16.62234042]
[1759105463023,0.68,210.59,210.56,16.62234042]
[1759105463230,0.68,210.61,210.56,16.62234042]
[1759105463408,26.0,210.63,210.57,0.27]
[1759105463797,26.68,210.63,210.58,16.62076169]
[1759105464089,0.68,210.62,210.58,16.62076169]
[1759105464293,0.68,210.61,210.58,16.62076169]
[1759105465945,0.68,210.61,210.55,16.62312989]
[1759105467216,0.68,210.64,210.56,0.27]
[1759105468018,0.68,210.64,210.57,16.62155101]
[1759105468217,0.68,210.64,210.57,40.3666239]
[1759105468741,1e-08,210.66,210.57,40.3666239]
[1759105468910,0.68000001,210.66,210.58,0.27]